bitfinex-derivatives/quotes_BTCF0:USTF0_20250810
["timestamp","ask_amount","ask_price","bid_price","bid_amount"]
[1754852026392,0.18941531,118720.0,118710.0,1.4708156]
[1754852026692,0.18941531,118720.0,118710.0,2.2585056]
[1754852026693,0.22316531,118720.0,118710.0,2.2585056]
[1754852027693,0.22316531,118720.0,118710.0,2.2354956]
[1754852027992,0.22316531,118720.0,118710.0,2.2589456]
[1754852028795,0.22316182,118720.0,118710.0,2.2589456]
[1754852030091,0.22316182,118720.0,118710.0,1.5373456]
[1754852030296,0.22316182,118720.0,118710.0,2.2589456]
[1754852030898,0.22316182,118720.0,118710.0,1.4942656]
[1754852031088,0.22316182,118720.0,118710.0,2.2592656]
[1754852033793,0.22316182,118720.0,118710.0,2.2591456]
[1754852035797,0.22316182,118720.0,118710.0,1.4942656]
[1754852035999,0.22316182,118720.0,118710.0,2.2591056]
[1754852038210,0.22316182,118720.0,118710.0,1.91329685]
[1754852038593,0.22316182,118720.0,118710.0,1.93674685]
[1754852041401,0.22316182,118720.0,118710.0,1.93574685]
[1754852041601,0.22316182,118720.0,118710.0,1.93374685]
[1754852042503,0.22316182,118720.0,118710.0,1.57294685]
[1754852045807,0.22316182,118720.0,118710.0,1.48871875]
[1754852045999,0.22316182,118720.0,118710.0,1.12791875]
[1754852046302,0.22316182,118720.0,118710.0,0.36319875]
[1754852046501,0.54540057,118720.0,118710.0,0.33974875]
[1754852046805,0.54540057,118720.0,118710.0,1.10450875]
[1754852047007,0.22316182,118720.0,118710.0,1.10450875]
[1754852047402,0.90620057,118720.0,118710.0,1.10450875]
[1754852047709,0.90720057,118720.0,118710.0,1.10350875]
[1754852049206,0.90720057,118720.0,118710.0,0.01651]
[1754852049407,0.90720057,118720.0,118710.0,0.32233875]
[1754852049805,0.90720057,118720.0,118710.0,0.33739875]
[1754852051910,0.54640057,118720.0,118710.0,0.33739875]
[1754852052411,0.90720057,118720.0,118710.0,0.33739875]
[1754852055314,0.58496182,118720.0,118710.0,0.33739875]
[1754852055514,0.90720057,118720.0,118710.0,0.33739875]
[1754852059415,0.54640057,118720.0,118710.0,0.33739875]
[1754852075022,0.90720057,118720.0,118710.0,0.33739875]
[1754852076222,0.90718254,118720.0,118710.0,0.33739875]
[1754852077116,0.54638254,118720.0,118710.0,0.33739875]
[1754852081326,0.52605125,118720.0,118710.0,0.33739875]
[1754852081521,0.54637458,118720.0,118710.0,0.33739875]
[1754852082629,0.54637458,118720.0,118710.0,0.01516]
[1754852082829,0.90717458,118720.0,118710.0,0.01516]
[1754852083030,0.90717458,118720.0,118710.0,0.33739875]
[1754852085831,0.90717458,118720.0,118710.0,0.0001]
[1754852091147,0.99862865,118720.0,118710.0,0.0001]
[1754852093444,1.0593175,118720.0,118710.0,0.0001]
[1754852096152,1.05927639,118720.0,118710.0,0.0001]
[1754852099751,0.99862865,118720.0,118710.0,0.0001]
[1754852101753,0.6763899,118720.0,118710.0,0.0001]
[1754852101955,0.99862865,118720.0,118710.0,0.0001]
[1754852108454,1.05927639,118720.0,118710.0,0.0001]
[1754852108653,0.99862865,118720.0,118710.0,0.0001]
[1754852109660,1.05927639,118720.0,118710.0,0.0001]
[1754852112661,0.69847639,118720.0,118710.0,0.0001]
[1754852112861,1.05927639,118720.0,118710.0,0.0001]
[1754852115368,0.99862865,118720.0,118710.0,0.0001]
[1754852125270,1.05927639,118720.0,118710.0,0.0001]
[1754852127067,1.05927639,118720.0,118690.0,0.69863875]
[1754852127068,0.1316465,118700.0,118690.0,0.69863875]
[1754852127376,0.54588858,118700.0,118690.0,0.69863875]
[1754852128268,0.54588858,118700.0,118690.0,0.69963875]
[1754852128467,0.54598858,118700.0,118690.0,0.69973875]
[1754852129164,0.54598858,118700.0,118690.0,0.70173875]
[1754852129566,0.54598858,118700.0,118690.0,0.72485875]
[1754852129763,0.54598858,118700.0,118690.0,0.70173875]
[1754852129975,0.54598858,118700.0,118690.0,0.72485875]
[1754852130667,0.22374983,118700.0,118690.0,0.72485875]
[1754852130867,0.54598858,118700.0,118690.0,0.72485875]
[1754852131671,0.22374983,118700.0,118690.0,0.72485875]
[1754852131872,0.54598858,118700.0,118690.0,0.72485875]
[1754852133271,0.54598858,118700.0,118690.0,0.3639]
[1754852133463,0.54598858,118700.0,118690.0,0.68613875]
[1754852134667,0.54598858,118700.0,118690.0,0.3639]
[1754852134974,0.54598858,118700.0,118690.0,0.0031]
[1754852138576,0.22374983,118700.0,118690.0,0.0031]
[1754852138777,0.54598858,118700.0,118690.0,0.0031]
[1754852142787,0.22374983,118700.0,118690.0,0.0031]
[1754852142988,0.54598858,118700.0,118690.0,0.0031]
[1754852144879,0.54598858,118700.0,118690.0,0.32533875]
[1754852151098,0.54598858,118700.0,118690.0,0.34146875]
[1754852159813,0.90678858,118700.0,118690.0,0.34146875]
[1754852161813,0.58454983,118700.0,118690.0,0.34146875]
[1754852162012,0.90678858,118700.0,118690.0,0.34146875]
[1754852163710,0.54598858,118700.0,118690.0,0.34146875]
[1754852163917,0.90678858,118700.0,118690.0,0.34146875]
[1754852164616,0.90678858,118700.0,118690.0,0.01923]
[1754852164803,0.90678858,118700.0,118690.0,0.34146875]
[1754852168710,0.54598858,118700.0,118690.0,0.34146875]
[1754852168910,0.90678858,118700.0,118690.0,0.34146875]
[1754852173018,0.90678858,118700.0,118690.0,0.01923]
[1754852177825,0.90678858,118700.0,118690.0,0.0031]
[1754852181932,0.58454983,118700.0,118690.0,0.0031]
[1754852182128,0.90678858,118700.0,118690.0,0.0031]
[1754852185433,0.54598858,118700.0,118690.0,0.0031]
[1754852185832,0.22374983,118700.0,118690.0,0.0031]
[1754852186037,0.54598858,118700.0,118690.0,0.0031]
[1754852186327,0.60663632,118700.0,118690.0,0.0031]
[1754852186523,0.60663632,118700.0,118690.0,0.32533875]
[1754852188535,0.60663632,118700.0,118690.0,0.0031]
[1754852196333,0.54598858,118700.0,118690.0,0.0031]
[1754852199128,0.90678858,118700.0,118690.0,0.0031]
[1754852200938,0.54598858,118700.0,118690.0,0.0031]
[1754852201237,0.90678858,118700.0,118690.0,0.0031]
[1754852203541,0.54598858,118700.0,118690.0,0.0031]
[1754852208743,0.22374983,118700.0,118690.0,0.0031]
[1754852208938,0.54598858,118700.0,118690.0,0.0031]
[1754852210843,0.90678858,118700.0,118690.0,0.0031]
[1754852211045,0.54598858,118700.0,118690.0,0.0031]
[1754852211243,0.90682858,118700.0,118690.0,0.0031]
[1754852211645,0.90682858,118700.0,118690.0,0.02189733]
[1754852213044,0.54602858,118700.0,118690.0,0.02189733]
[1754852213247,0.90682858,118700.0,118690.0,0.02189733]
[1754852214644,0.54602858,118700.0,118690.0,0.02189733]
[1754852220251,0.90682858,118700.0,118690.0,0.02189733]
[1754852221351,0.90678673,118700.0,118690.0,0.02189733]
[1754852221551,0.54598673,118700.0,118690.0,0.02189733]
[1754852222251,0.90678673,118700.0,118690.0,0.02189733]
[1754852226256,0.96743447,118700.0,118690.0,0.02189733]
[1754852229758,0.60663447,118700.0,118690.0,0.02189733]
[1754852229959,0.96743447,118700.0,118690.0,0.02189733]
[1754852231059,0.60663447,118700.0,118690.0,0.02189733]
[1754852231260,0.96743447,118700.0,118690.0,0.02189733]
[1754852231559,0.60663447,118700.0,118690.0,0.02189733]
[1754852232955,0.54598673,118700.0,118690.0,0.02189733]
[1754852233156,0.60663447,118700.0,118690.0,0.02189733]
[1754852233972,0.96743447,118700.0,118690.0,0.02189733]
[1754852234469,0.60663447,118700.0,118690.0,0.02189733]
[1754852235558,0.54598673,118700.0,118690.0,0.02189733]
[1754852238970,0.22374798,118700.0,118690.0,0.02189733]
[1754852239177,0.54598673,118700.0,118690.0,0.02189733]
[1754852243875,0.90678673,118700.0,118690.0,0.02189733]
[1754852244377,0.54598673,118700.0,118690.0,0.02189733]
[1754852244772,0.90678673,118700.0,118690.0,0.02189733]
[1754852247379,0.54598673,118700.0,118690.0,0.02189733]
[1754852247575,0.90678673,118700.0,118690.0,0.02189733]
[1754852248773,0.54598673,118700.0,118690.0,0.02189733]
[1754852248981,0.90678673,118700.0,118690.0,0.02189733]
[1754852250084,0.54598673,118700.0,118690.0,0.02189733]
[1754852250278,0.90678673,118700.0,118690.0,0.02189733]
[1754852256675,0.54598673,118700.0,118690.0,0.02189733]
[1754852256988,0.54598673,118700.0,118690.0,0.02089733]
[1754852257587,0.54598673,118700.0,118690.0,0.01989733]
[1754852262593,0.90678673,118700.0,118690.0,0.01989733]
[1754852263293,0.54598673,118700.0,118690.0,0.01989733]
[1754852265498,0.90678673,118700.0,118690.0,0.01989733]
[1754852268093,0.90674673,118700.0,118690.0,0.01989733]
[1754852268295,0.92397335,118700.0,118690.0,0.01989733]
[1754852271899,1.01251459,118700.0,118690.0,0.01989733]
[1754852272098,0.99223311,118700.0,118690.0,0.01989733]
[1754852272401,1.01256964,118700.0,118690.0,0.01989733]
[1754852275201,0.67310427,118700.0,118690.0,0.01989733]
[1754852275401,1.01210093,118700.0,118690.0,0.34213608]
[1754852276002,1.01210093,118700.0,118690.0,0.01989733]
[1754852276502,1.07274867,118700.0,118690.0,0.01989733]
[1754852284509,0.71194867,118700.0,118690.0,0.01989733]
[1754852284695,1.07274867,118700.0,118690.0,0.01989733]
[1754852286308,1.01210093,118700.0,118690.0,0.01989733]
[1754852288405,0.68986218,118700.0,118690.0,0.01989733]
[1754852288704,1.01210093,118700.0,118690.0,0.01989733]
[1754852294513,0.68986218,118700.0,118690.0,0.01989733]
[1754852294706,1.01210093,118700.0,118690.0,0.01989733]
[1754852297810,0.65130093,118700.0,118690.0,0.01989733]
[1754852298002,1.01210093,118700.0,118690.0,0.01989733]
[1754852312116,0.65130093,118700.0,118690.0,0.01989733]
[1754852312321,1.01210093,118700.0,118690.0,0.01989733]
[1754852316416,1.07274867,118700.0,118690.0,0.01989733]
[1754852317217,0.75050992,118700.0,118690.0,0.01989733]
[1754852317412,1.07274867,118700.0,118690.0,0.01989733]
[1754852319125,0.0842507,118680.0,118670.0,0.3608]
[1754852319312,0.3686461,118670.0,118660.0,0.38]
[1754852319521,0.71122138,118670.0,118660.0,0.39876333]
[1754852320021,0.71122138,118670.0,118660.0,0.72100208]
[1754852320413,0.71122138,118670.0,118660.0,0.39876333]
[1754852320617,0.71132138,118670.0,118660.0,0.39886333]
[1754852320825,0.72094306,118670.0,118660.0,0.40586333]
[1754852321325,0.72094306,118670.0,118660.0,0.41086333]
[1754852322518,0.72094306,118670.0,118660.0,0.73310208]
[1754852324130,0.78847148,118670.0,118660.0,0.73310208]
[1754852324522,0.78847148,118670.0,118660.0,0.37230208]
[1754852327526,0.78847148,118670.0,118660.0,0.45656698]
[1754852327726,0.78847148,118670.0,118660.0,0.46281698]
[1754852330331,0.78847148,118670.0,118660.0,0.37855208]
[1754852330733,0.78847148,118670.0,118660.0,0.73935208]
[1754852331837,0.78847148,118670.0,118660.0,0.82361698]
[1754852332435,0.78847148,118670.0,118660.0,0.73935208]
[1754852332634,0.46623273,118670.0,118660.0,0.73935208]
[1754852332830,0.78847148,118670.0,118660.0,0.73935208]
[1754852333031,0.78847148,118670.0,118660.0,0.82361698]
[1754852333838,0.78847148,118670.0,118660.0,0.46281698]
[1754852335940,0.46623273,118670.0,118660.0,0.46281698]
[1754852336129,0.78847148,118670.0,118660.0,0.46281698]
[1754852336440,0.46623273,118670.0,118660.0,0.46281698]
[1754852336738,0.78847148,118670.0,118660.0,0.46281698]
[1754852337136,0.78847148,118670.0,118660.0,0.82361698]
[1754852337342,0.46623273,118670.0,118660.0,0.82361698]
[1754852337536,0.78847148,118670.0,118660.0,0.82361698]
[1754852338937,0.46623273,118670.0,118660.0,0.82361698]
[1754852339249,0.78847148,118670.0,118660.0,0.84706698]
[1754852339745,0.46623273,118670.0,118660.0,0.84706698]
[1754852339945,0.08896495,118670.0,118660.0,2.08297098]
[1754852340245,0.10569433,118670.0,118660.0,2.08297098]
[1754852340637,0.10569433,118670.0,118660.0,1.61502698]
[1754852340638,0.43733308,118670.0,118660.0,1.61502698]
[1754852340836,0.22155433,118670.0,118660.0,1.61502698]
[1754852341236,0.22155433,118670.0,118660.0,1.29278823]
[1754852341443,0.22155433,118670.0,118660.0,1.61502698]
[1754852343347,0.15203433,118670.0,118660.0,1.61502698]
[1754852344450,0.15203433,118670.0,118660.0,1.29278823]
[1754852344657,0.15203433,118670.0,118660.0,1.61502698]
[1754852344953,0.18393433,118670.0,118660.0,1.61502698]
[1754852345155,0.18393433,118670.0,118660.0,1.29278823]
[1754852345343,0.18393433,118670.0,118660.0,1.61502698]
[1754852346155,0.22155433,118670.0,118660.0,1.61502698]
[1754852346456,0.54379308,118670.0,118660.0,0.84706698]
[1754852346754,0.22155433,118670.0,118660.0,1.61622698]
[1754852346956,0.54379308,118670.0,118660.0,1.61622698]
[1754852347157,0.22155433,118670.0,118660.0,1.61622698]
[1754852349159,0.54340308,118670.0,118660.0,1.61622698]
[1754852350958,0.54340308,118670.0,118660.0,0.84706698]
[1754852351163,0.54340308,118670.0,118660.0,1.61658698]
[1754852351458,0.54340308,118670.0,118660.0,0.93354823]
[1754852351659,0.54340308,118670.0,118660.0,1.61634698]
[1754852351960,0.22116433,118670.0,118660.0,1.61634698]
[1754852352156,0.54340308,118670.0,118660.0,1.61634698]
[1754852352460,0.22116433,118670.0,118660.0,1.61634698]
[1754852353054,0.22116433,118670.0,118660.0,1.61642698]
[1754852354955,0.22116433,118670.0,118660.0,0.84706698]
[1754852355151,0.22116433,118670.0,118660.0,1.61622698]
[1754852358961,0.54340308,118670.0,118660.0,1.61622698]
[1754852359863,0.54340308,118670.0,118660.0,1.29398823]
[1754852360054,0.54340308,118670.0,118660.0,1.61622698]
[1754852360055,0.22116433,118670.0,118660.0,1.61622698]
[1754852360360,0.54340308,118670.0,118660.0,1.61622698]
[1754852360961,0.22116433,118670.0,118660.0,1.61622698]
[1754852365068,0.22116433,118670.0,118660.0,1.29398823]
[1754852365364,0.22116433,118670.0,118660.0,1.61622698]
[1754852369266,0.22116433,118670.0,118660.0,0.84706698]
[1754852369465,0.22116433,118670.0,118660.0,1.61602698]
[1754852370367,0.22116433,118670.0,118660.0,0.84706698]
[1754852370566,0.22116433,118670.0,118660.0,1.61590698]
[1754852370758,0.54340308,118670.0,118660.0,1.61590698]
[1754852371268,0.54340308,118670.0,118660.0,1.61582698]
[1754852372365,0.54340308,118670.0,118660.0,0.84706698]
[1754852372567,0.54340308,118670.0,118660.0,1.61582698]
[1754852373571,0.54340308,118670.0,118660.0,1.29358823]
[1754852373868,0.54340308,118670.0,118660.0,1.61582698]
[1754852374169,0.22116433,118670.0,118660.0,1.61582698]
[1754852374469,0.54340308,118670.0,118660.0,1.61582698]
[1754852377174,0.22116433,118670.0,118660.0,1.61582698]
[1754852377366,0.54340308,118670.0,118660.0,1.61582698]
[1754852378274,0.54343279,118670.0,118660.0,1.61582698]
[1754852383072,0.22119404,118670.0,118660.0,1.61582698]
[1754852383271,0.54343279,118670.0,118660.0,1.61582698]
[1754852385173,0.22119404,118670.0,118660.0,1.61582698]
[1754852385371,0.54343279,118670.0,118660.0,1.61582698]
[1754852387377,0.54343279,118670.0,118660.0,1.25502698]
[1754852387778,0.54343279,118670.0,118660.0,1.61582698]
[1754852389177,0.54343279,118670.0,118660.0,1.29358823]
[1754852389371,0.54343279,118670.0,118660.0,1.61582698]
[1754852389572,0.54343279,118670.0,118660.0,0.84706698]
[1754852389771,0.54343279,118670.0,118660.0,1.61554698]
[1754852390279,0.54343279,118670.0,118660.0,0.84706698]
[1754852390479,0.54343279,118670.0,118660.0,0.82830365]
[1754852390680,0.54343279,118670.0,118660.0,1.59670365]
[1754852391180,0.22119404,118670.0,118660.0,0.5060649]
[1754852391382,0.54343279,118670.0,118660.0,1.59682365]
[1754852391583,0.54343279,118670.0,118660.0,0.82830365]
[1754852391781,0.54343279,118670.0,118660.0,1.59682365]
[1754852392776,0.22119404,118670.0,118660.0,1.59682365]
[1754852392977,0.54343279,118670.0,118660.0,1.59682365]
[1754852397686,0.22119404,118670.0,118660.0,1.59682365]
[1754852397887,0.54343279,118670.0,118660.0,1.59682365]
[1754852399788,0.22119404,118670.0,118660.0,1.59682365]
[1754852399987,0.54343279,118670.0,118660.0,1.59682365]
[1754852400287,0.54343279,118670.0,118660.0,1.23602365]
[1754852400591,0.54343279,118670.0,118660.0,1.59682365]
[1754852403294,0.54343279,118670.0,118660.0,1.2745849]
[1754852403689,0.54343279,118670.0,118660.0,1.2743849]
[1754852404185,0.54343279,118670.0,118660.0,1.59662365]
[1754852406089,0.10572404,118670.0,118660.0,1.59662365]
[1754852406292,0.02146624,118670.0,118660.0,1.59662365]
[1754852406695,0.3296641,118680.0,118660.0,1.84931415]
[1754852406898,0.3522541,118680.0,118670.0,0.78259715]
[1754852408597,0.3522541,118680.0,118670.0,0.78459715]
[1754852408798,0.3523541,118680.0,118670.0,0.78469715]
[1754852408997,0.3523541,118680.0,118670.0,0.78769715]
[1754852411902,0.3669841,118680.0,118670.0,0.78769715]
[1754852412603,0.3763341,118680.0,118670.0,0.78769715]
[1754852412898,0.69857285,118680.0,118670.0,0.78769715]
[1754852413203,0.73223285,118680.0,118670.0,0.78769715]
[1754852413403,0.74870285,118680.0,118670.0,0.78769715]
[1754852413706,0.77124285,118680.0,118670.0,0.78769715]
[1754852414608,0.77124285,118680.0,118670.0,0.4654584]
[1754852414906,0.77124285,118680.0,118670.0,0.42689715]
[1754852416710,0.77124285,118680.0,118670.0,0.1046584]
[1754852417005,0.77124285,118680.0,118670.0,0.42689715]
[1754852418002,0.77124285,118680.0,118670.0,0.78769715]
[1754852418202,0.77124285,118680.0,118670.0,0.42689715]
[1754852418403,0.4490041,118680.0,118670.0,0.42689715]
[1754852418605,0.79145753,118680.0,118670.0,0.1046584]
[1754852418898,0.79145753,118680.0,118670.0,0.42491715]
[1754852419405,0.79145753,118680.0,118670.0,0.1026784]
[1754852419606,0.79145753,118680.0,118670.0,0.42491715]
[1754852420405,0.79145753,118680.0,118670.0,0.78571715]
[1754852421502,0.79145753,118680.0,118670.0,0.42491715]
[1754852421807,0.79145753,118680.0,118670.0,0.78571715]
[1754852422004,0.79145753,118680.0,118670.0,0.42491715]
[1754852422606,0.79145753,118680.0,118670.0,0.78571715]
[1754852424010,0.79145753,118680.0,118670.0,0.42491715]
[1754852424413,0.79145753,118680.0,118670.0,0.1026784]
[1754852424710,0.79145753,118680.0,118670.0,0.42491715]
[1754852425009,0.46921878,118680.0,118670.0,0.42491715]
[1754852425210,0.79145753,118680.0,118670.0,0.42491715]
[1754852427511,0.79145753,118680.0,118670.0,0.1026784]
[1754852427712,0.79145753,118680.0,118670.0,0.42491715]
[1754852428908,0.79145753,118680.0,118670.0,0.1026784]
[1754852429214,0.79145753,118680.0,118670.0,0.42491715]
[1754852429413,1.56005753,118680.0,118670.0,0.42491715]
[1754852433617,1.56005753,118680.0,118670.0,0.1026784]
[1754852433819,1.56005753,118680.0,118670.0,0.34065875]
[1754852434022,1.56005753,118680.0,118670.0,0.42491715]
[1754852434319,1.56005753,118680.0,118670.0,0.1026784]
[1754852435522,1.56005753,118680.0,118670.0,0.0964284]
[1754852435918,1.23781878,118680.0,118670.0,0.0932584]
[1754852436223,1.56005753,118680.0,118670.0,0.0932584]
[1754852437219,1.56005753,118680.0,118670.0,0.0893584]
[1754852441325,1.56005753,118680.0,118670.0,0.41159715]
[1754852443221,1.88229628,118680.0,118670.0,0.0051]
[1754852443526,0.2022384,118670.0,118660.0,0.3608]
[1754852443727,0.54469183,118670.0,118660.0,0.3608]
[1754852444529,0.54569183,118670.0,118660.0,0.3678]
[1754852444732,0.54579183,118670.0,118660.0,0.3729]
[1754852448740,0.22355308,118670.0,118660.0,0.77940425]
[1754852449035,0.54579183,118670.0,118660.0,0.80088425]
[1754852449337,0.52557715,118670.0,118660.0,0.80088425]
[1754852449634,0.5457575,118670.0,118660.0,0.80088425]
[1754852453838,0.5457575,118670.0,118660.0,0.4786455]
[1754852454041,0.5457575,118670.0,118660.0,0.80088425]
[1754852457142,0.5457575,118670.0,118660.0,0.71661875]
[1754852457841,0.5457575,118670.0,118660.0,0.39438]
[1754852458044,0.5457575,118670.0,118660.0,0.71661875]
[1754852459541,0.5457575,118670.0,118660.0,0.39438]
[1754852460445,0.5457575,118670.0,118660.0,0.03358]
[1754852460646,0.5457575,118670.0,118660.0,0.39438]
[1754852462746,0.5457575,118670.0,118660.0,0.03358]
[1754852462947,0.5457575,118670.0,118660.0,0.38813]
[1754852463347,0.5457575,118670.0,118660.0,0.4723954]
[1754852463746,0.5457575,118670.0,118660.0,0.4786454]
[1754852465745,0.5457575,118670.0,118660.0,0.80088415]
[1754852470638,0.5457575,118670.0,118660.0,0.71661875]
[1754852471643,0.5457575,118670.0,118660.0,0.39438]
[1754852472148,0.5457575,118670.0,118660.0,0.03358]
[1754852472449,0.5457575,118670.0,118660.0,0.39438]
[1754852475848,0.5457575,118670.0,118660.0,0.38423]
[1754852476445,0.5457575,118670.0,118660.0,0.38813]
[1754852479653,0.5457575,118670.0,118660.0,0.02733]
[1754852479854,0.5457575,118670.0,118660.0,0.38813]
[1754852481056,0.5457575,118670.0,118660.0,0.3729]
[1754852481251,0.5457575,118670.0,118660.0,0.0121]
[1754852485159,0.5457575,118670.0,118660.0,0.016]
[1754852489557,0.5457575,118670.0,118660.0,0.0121]
[1754852492053,0.63635389,118670.0,118660.0,0.0121]
[1754852496960,0.99715389,118670.0,118660.0,0.0121]
[1754852511163,0.67491514,118670.0,118660.0,0.0121]
[1754852511357,0.99715389,118670.0,118660.0,0.0121]
[1754852513274,0.67491514,118670.0,118660.0,0.0121]
[1754852513472,0.99715389,118670.0,118660.0,0.0121]
[1754852518073,0.63635389,118670.0,118660.0,0.0121]
[1754852518274,0.99715389,118670.0,118660.0,0.0121]
[1754852525079,0.63635389,118670.0,118660.0,0.0121]
[1754852525274,0.99715389,118670.0,118660.0,0.0121]
[1754852530080,1.40671389,118670.0,118660.0,0.0121]
[1754852530282,1.76751389,118670.0,118660.0,0.0121]
[1754852531279,1.74733354,118670.0,118660.0,0.0121]
[1754852531582,1.38653354,118670.0,118660.0,0.0121]
[1754852532181,1.74733354,118670.0,118660.0,0.0121]
[1754852532578,1.76775944,118670.0,118660.0,0.0121]
[1754852538090,1.40695944,118670.0,118660.0,0.0121]
[1754852538283,1.76775944,118670.0,118660.0,0.0121]
[1754852539099,1.76765944,118670.0,118660.0,0.00493204]
[1754852542394,1.40685944,118670.0,118660.0,0.00493204]
[1754852542585,1.40695944,118670.0,118660.0,0.00503204]
[1754852542893,1.76775944,118670.0,118660.0,0.00503204]
[1754852546295,1.40695944,118670.0,118660.0,0.00503204]
[1754852546493,1.46769284,118670.0,118660.0,0.00503204]
[1754852546793,1.82849284,118670.0,118660.0,0.00503204]
[1754852548394,1.80806694,118670.0,118660.0,0.00503204]
[1754852548592,1.82846802,118670.0,118660.0,0.00503204]
[1754852549596,1.46766802,118670.0,118660.0,0.00503204]
[1754852550496,1.82846802,118670.0,118660.0,0.00503204]
[1754852551396,1.46766802,118670.0,118660.0,0.00503204]
[1754852551589,1.76773462,118670.0,118660.0,0.00503204]
[1754852557311,1.74733354,118670.0,118660.0,0.00503204]
[1754852557608,1.76773532,118670.0,118660.0,0.00503204]
[1754852559609,1.40693532,118670.0,118660.0,0.00503204]
[1754852559813,1.76773532,118670.0,118660.0,0.00503204]
[1754852561114,1.40693532,118670.0,118660.0,0.00503204]
[1754852562416,1.76773532,118670.0,118660.0,0.00503204]
[1754852565217,1.40693532,118670.0,118660.0,0.00503204]
[1754852565418,1.76773532,118670.0,118660.0,0.00503204]
[1754852566318,1.40693532,118670.0,118660.0,0.00503204]
[1754852566517,1.76773532,118670.0,118660.0,0.00503204]
[1754852568019,1.44549657,118670.0,118660.0,0.00503204]
[1754852568218,1.76773532,118670.0,118660.0,0.00503204]
[1754852569814,1.40693532,118670.0,118660.0,0.00503204]
[1754852570019,1.76773532,118670.0,118660.0,0.00503204]
[1754852571922,1.40693532,118670.0,118660.0,0.00503204]
[1754852572122,1.76773532,118670.0,118660.0,0.00503204]
[1754852575725,1.40693532,118670.0,118660.0,0.00503204]
[1754852576225,1.76773532,118670.0,118660.0,0.00503204]
[1754852580930,1.40693532,118670.0,118660.0,0.00503204]
[1754852582330,1.08469657,118670.0,118660.0,0.00503204]
[1754852582527,1.40693532,118670.0,118660.0,0.00503204]
[1754852595236,0.63657532,118670.0,118660.0,0.00503204]
[1754852595436,1.40369532,118670.0,118660.0,0.00503204]
[1754852597341,1.38329354,118670.0,118660.0,0.00503204]
[1754852597542,1.40369201,118670.0,118660.0,0.00503204]
[1754852598339,1.46442541,118670.0,118660.0,0.00503204]
[1754852606635,1.40369201,118670.0,118660.0,0.00503204]
[1754852612248,1.76449201,118670.0,118660.0,0.00503204]
[1754852617952,1.74409354,118670.0,118660.0,0.00503204]
[1754852618456,1.76448973,118670.0,118660.0,0.00503204]
[1754852618750,1.76448987,118670.0,118660.0,0.00503204]
[1754852618954,1.7644899,118670.0,118660.0,0.00503204]
[1754852624261,1.7644899,118670.0,118640.0,0.37973947]
[1754852624262,0.1314826,118650.0,118640.0,0.37973947]
[1754852624457,1.63633646,118650.0,118640.0,0.37973947]
[1754852624664,1.72687786,118650.0,118640.0,0.37973947]
[1754852625258,1.72687786,118650.0,118640.0,0.38363947]
[1754852625463,1.72697786,118650.0,118640.0,0.38373947]
[1754852625864,1.72797786,118650.0,118640.0,0.39173947]
[1754852626065,1.72897786,118650.0,118640.0,0.39483947]
[1754852626664,1.72797786,118650.0,118640.0,0.39083947]
[1754852627371,1.72697786,118650.0,118640.0,0.38283947]
[1754852627572,1.72797786,118650.0,118640.0,0.38583947]
[1754852632778,1.72797786,118650.0,118640.0,0.02503947]
[1754852634383,2.08877786,118650.0,118640.0,0.02503947]
[1754852641489,2.08777786,118650.0,118640.0,0.02203947]
[1754852641691,2.08877786,118650.0,118640.0,0.02203947]
[1754852641990,2.08877786,118650.0,118640.0,0.01903947]
[1754852644580,2.08877786,118650.0,118640.0,0.0001]
[1754852646482,2.14951126,118650.0,118640.0,0.0001]
[1754852648994,1.78871126,118650.0,118640.0,0.0001]
[1754852649193,2.14951126,118650.0,118640.0,0.0001]
[1754852654693,1.78871126,118650.0,118640.0,0.0001]
[1754852654899,2.14951126,118650.0,118640.0,0.0001]
[1754852656496,2.08877786,118650.0,118640.0,0.0001]
[1754852668703,2.14951126,118650.0,118640.0,0.0001]
[1754852670610,2.08877786,118650.0,118640.0,0.0001]
[1754852670810,2.14951126,118650.0,118640.0,0.0001]
[1754852672310,2.08877786,118650.0,118640.0,0.0001]
[1754852677018,2.0683815,118650.0,118640.0,0.0001]
[1754852677217,2.08878356,118650.0,118640.0,0.0001]
[1754852679019,2.14951696,118650.0,118640.0,0.0001]
[1754852680720,1.78871696,118650.0,118640.0,0.0001]
[1754852680916,2.51031696,118650.0,118640.0,0.0001]
[1754852682723,2.51021696,118650.0,118640.0,3.72e-06]
[1754852686526,2.44948356,118650.0,118640.0,3.72e-06]
[1754852686723,2.52540031,118650.0,118640.0,3.72e-06]
[1754852690825,2.44948356,118650.0,118640.0,3.72e-06]
[1754852692027,2.4290815,118650.0,118640.0,3.72e-06]
[1754852692225,2.4495233,118650.0,118640.0,3.72e-06]
[1754852696529,2.51027637,118650.0,118640.0,3.72e-06]
[1754852702029,2.14947637,118650.0,118640.0,3.72e-06]
[1754852702642,0.1318971,118630.0,118620.0,0.02572]
[1754852702841,1.31476765,118630.0,118620.0,0.03783]
[1754852703942,1.31476765,118630.0,118620.0,0.02572]
[1754852704129,1.31486765,118630.0,118620.0,0.02582]
[1754852704336,1.6381064,118630.0,118620.0,0.03282]
[1754852704538,1.6381064,118630.0,118620.0,0.04493]
[1754852704736,1.31586765,118630.0,118620.0,0.04493]
[1754852705442,1.31586765,118630.0,118620.0,0.03282]
[1754852705741,1.31486765,118630.0,118620.0,0.02582]
[1754852705942,1.31586765,118630.0,118620.0,0.02982]
[1754852706646,1.31686765,118630.0,118620.0,0.03582]
[1754852707445,1.31586765,118630.0,118620.0,0.03282]
[1754852708147,0.9936289,118630.0,118620.0,0.03282]
[1754852708644,1.31586765,118630.0,118620.0,0.03282]
[1754852716854,1.31586765,118630.0,118620.0,0.02657]
[1754852718149,1.31586765,118630.0,118620.0,0.0071]
[1754852719144,1.29542585,118630.0,118620.0,0.0071]
[1754852719348,1.31586139,118630.0,118620.0,0.0071]
[1754852719548,1.33323894,118630.0,118620.0,0.0071]
[1754852721551,1.3128034,118630.0,118620.0,0.0071]
[1754852721742,1.33323738,118630.0,118620.0,0.0071]
[1754852725647,1.65547613,118630.0,118620.0,0.0071]
[1754852726554,1.63504215,118630.0,118620.0,0.0071]
[1754852726757,1.65559543,118630.0,118620.0,0.0071]
[1754852727051,1.33335668,118630.0,118620.0,0.0071]
[1754852729749,1.65559543,118630.0,118620.0,0.0071]
[1754852729949,1.74847617,118630.0,118620.0,0.0071]
[1754852730159,1.42623742,118630.0,118620.0,0.0071]
[1754852734464,0.01568,118610.0,118600.0,0.3608]
[1754852734758,0.2037355,118590.0,118580.0,0.40515]
[1754852734958,1.3219,118590.0,118580.0,0.40515]
[1754852735353,1.64413875,118590.0,118580.0,0.40515]
[1754852735559,1.64413875,118590.0,118580.0,0.3609]
[1754852735759,1.64423875,118590.0,118580.0,0.361]
[1754852736354,1.71240624,118590.0,118580.0,0.361]
[1754852737751,1.71240624,118590.0,118580.0,0.0002]
[1754852738155,1.71340624,118590.0,118580.0,0.0042]